fUSD/lending_fUSD_20240915
["ID","MTS","AMOUNT","RATE_DAILY","PERIOD"]
[338203815,1726384281533,-1072.53,0.00014084,2]
[338203816,1726384281542,-1776.28,0.00014084,2]
[338203817,1726384281551,-643.45,0.00014084,2]
[338203818,1726384281560,-1063.05,0.00014084,2]
[338203819,1726384281569,-1246.05,0.00014084,2]
[338203820,1726384281578,-1457.54,0.00014084,2]
[338203821,1726384281587,-2869.58,0.00014084,2]
[338203822,1726384281596,-1553.99,0.00014084,2]
[338203823,1726384281605,-1015.21,0.00014084,2]
[338203824,1726384281614,-500.0,0.00014084,2]
[338203825,1726384281624,-1443.65,0.00014084,2]
[338203826,1726384281633,-3801.54,0.00014084,2]
[338203827,1726384281642,-1205.51,0.00014084,2]
[338203828,1726384281651,-720.45,0.00014084,2]
[338203829,1726384281661,-36550.0,0.00014084,2]
[338203830,1726384281670,-1978.73,0.00014084,2]
[338203831,1726384281680,-690.47,0.00014084,2]
[338203832,1726384281689,-2421.43,0.00014084,2]
[338203833,1726384281698,-500.0,0.00014084,2]
[338203834,1726384281708,-840.95,0.00014084,2]
[338203835,1726384281718,-943.67,0.00014084,2]
[338203836,1726384281727,-2863.73,0.00014084,2]
[338203837,1726384281736,-947.71,0.00014084,2]
[338203838,1726384281745,-1661.28,0.00014084,2]
[338203839,1726384281755,-1565.67,0.00014084,2]
[338203840,1726384281765,-500.0,0.00014084,2]
[338203841,1726384281774,-715.77,0.00014084,2]
[338203842,1726384281783,-1257.48,0.00014084,2]
[338203843,1726384281794,-666.36,0.00014084,2]
[338203844,1726384281803,-709.89,0.00014084,2]
[338203845,1726384281812,-596.91,0.00014084,2]
[338203846,1726384281822,-4687.75,0.00014084,2]
[338203847,1726384281831,-584.42,0.00014084,2]
[338203848,1726384281840,-20357.97,0.00014084,2]
[338203849,1726384281850,-1450.86,0.00014084,2]
[338203850,1726384281860,-4084.58,0.00014084,2]
[338203851,1726384281870,-2376.37,0.00014084,2]
[338203852,1726384281881,-806.06,0.00014084,2]
[338203853,1726384281891,-2576.35,0.00014084,2]
[338203854,1726384281902,-1097.09,0.00014084,2]
[338203855,1726384281911,-581.54,0.00014084,2]
[338203856,1726384281921,-1447.62,0.00014084,2]
[338203857,1726384281931,-11423.77,0.00014084,2]
[338203858,1726384281941,-500.0,0.00014084,2]
[338203859,1726384281952,-1753.71,0.00014084,2]
[338203860,1726384281962,-1676.57,0.00014084,2]
[338203861,1726384281971,-2930.04,0.00014084,2]
[338203862,1726384281981,-839.07,0.00014084,2]
[338203863,1726384281991,-2105.05,0.00014084,2]
[338203864,1726384282000,-3633.84,0.00014084,2]
[338203865,1726384282010,-3764.67,0.00014084,2]
[338203866,1726384282020,-1749.15,0.00014084,2]
[338203867,1726384282029,-500.0,0.00014085,2]
[338203868,1726384282038,-500.0,0.00014085,2]
[338203869,1726384282047,-500.0,0.00014085,2]
[338203870,1726384282057,-500.0,0.00014085,2]
[338203871,1726384282067,-500.0,0.00014085,2]
[338203872,1726384282076,-500.0,0.00014085,2]
[338203873,1726384282086,-372.9326909,0.00014085,2]
[338203874,1726384282096,-500.0,0.00014085,2]
[338203875,1726384282105,-930.2,0.00014085,2]
[338203876,1726384282115,-554.84,0.00014085,2]
[338203877,1726384282124,-500.0,0.00014085,2]
[338203878,1726384282134,-500.0,0.00014085,2]
[338203879,1726384282148,-500.0,0.00014085,2]
[338203880,1726384282157,-604.18,0.00014085,2]
[338203881,1726384282167,-500.0,0.00014085,2]
[338203882,1726384282176,-500.0,0.00014085,2]
[338203883,1726384282185,-500.0,0.00014085,2]
[338203884,1726384282195,-500.0,0.00014085,2]
[338203885,1726384282205,-500.0,0.00014085,2]
[338203886,1726384282214,-500.0,0.00014085,2]
[338203887,1726384282223,-500.0,0.00014085,2]
[338203888,1726384282233,-500.0,0.00014085,2]
[338203889,1726384282243,-500.0,0.00014085,2]
[338203890,1726384282427,-694.39,0.00014085,2]
[338203891,1726384282437,-609.6,0.00014085,2]
[338203892,1726384282447,-500.0,0.00014085,2]
[338203893,1726384282457,-808.92,0.00014085,2]
[338203894,1726384282466,-459.970426,0.00014085,2]
[338203895,1726384282476,-873.67,0.00014085,2]
[338203896,1726384282485,-2529.49,0.00014085,2]
[338203897,1726384282494,-1328.55,0.00014085,2]
[338203898,1726384282504,-500.0,0.00014085,2]
[338203899,1726384282522,-1667.07,0.00014085,2]
[338203900,1726384282531,-2315.03,0.00014085,2]
[338203901,1726384282541,-500.0,0.00014085,2]
[338203902,1726384282551,-936.19,0.00014085,2]
[338203903,1726384282560,-1478.04,0.00014085,2]
[338203904,1726384282569,-2206.65,0.00014085,2]
[338203905,1726384282578,-500.0,0.00014085,2]
[338203906,1726384282588,-1922.74,0.00014085,2]
[338203907,1726384282598,-1516.11,0.00014085,2]
[338203908,1726384282607,-500.0,0.00014085,2]
[338203909,1726384282616,-1642.51,0.00014085,2]
[338203910,1726384282625,-500.0,0.00014085,2]
[338203911,1726384282635,-629.36,0.00014085,2]
[338203912,1726384282645,-1521.92,0.00014085,2]
[338203913,1726384282654,-500.0,0.00014085,2]
[338203914,1726384282664,-221.8146559,0.00014085,2]
[338203915,1726384282673,-500.0,0.00014085,2]
[338203916,1726384282683,-500.0,0.00014085,2]
[338203917,1726384282692,-500.0,0.00014085,2]
[338203918,1726384282702,-1470.32,0.00014085,2]
[338203919,1726384282711,-694.17,0.00014085,2]
[338203920,1726384282721,-1454.64,0.00014085,2]
[338203921,1726384282731,-500.0,0.00014085,2]
[338203922,1726384282740,-500.0,0.00014085,2]
[338203923,1726384282750,-500.0,0.00014085,2]
[338203924,1726384282759,-716.6,0.00014085,2]
[338203925,1726384282769,-927.09,0.00014085,2]
[338203926,1726384282779,-722.36,0.00014085,2]
[338203927,1726384282788,-500.0,0.00014085,2]
[338203928,1726384282797,-2495.96,0.00014085,2]
[338203929,1726384282807,-570.21190337,0.00014085,2]
[338203930,1726384282817,-500.0,0.00014085,2]
[338203931,1726384282826,-500.0,0.00014085,2]
[338203932,1726384282836,-305.53354903,0.00014085,2]
[338203933,1726384282845,-500.0,0.00014085,2]
[338203934,1726384282855,-1558.54,0.00014085,2]
[338203935,1726384282864,-830.41,0.00014085,2]
[338203936,1726384282874,-1583.83,0.00014085,2]
[338203937,1726384282883,-500.0,0.00014085,2]
[338203938,1726384282893,-844.75,0.00014085,2]
[338203939,1726384282903,-587.35,0.00014085,2]
[338203940,1726384282913,-1512.95,0.00014085,2]
[338203941,1726384282922,-1368.15,0.00014085,2]
[338203942,1726384282932,-593.11,0.00014085,2]
[338203943,1726384282942,-500.0,0.00014085,2]
[338203944,1726384282951,-1632.36,0.00014085,2]
[338203945,1726384282961,-500.0,0.00014085,2]
[338203946,1726384282970,-500.0,0.00014085,2]
[338203947,1726384282979,-594.56,0.00014085,2]
[338203948,1726384282989,-500.0,0.00014085,2]
[338203949,1726384282998,-2774.06,0.00014085,2]
[338203950,1726384283008,-500.0,0.00014085,2]
[338203951,1726384283018,-857.15,0.00014085,2]
[338203952,1726384283027,-500.0,0.00014085,2]
[338203953,1726384283038,-500.0,0.00014085,2]
[338203954,1726384283047,-500.0,0.00014085,2]
[338203955,1726384283056,-1922.46,0.00014085,2]
[338203956,1726384283066,-500.0,0.00014085,2]
[338203957,1726384283076,-500.0,0.00014085,2]
[338203958,1726384283085,-675.75,0.00014085,2]
[338203959,1726384283095,-1333.26,0.00014085,2]
[338203960,1726384283105,-851.02,0.00014085,2]
[338203961,1726384283114,-541.28,0.00014085,2]
[338203962,1726384283124,-500.0,0.00014085,2]
[338203963,1726384283134,-592.15,0.00014085,2]
[338203964,1726384283147,-931.44,0.00014085,2]
[338203965,1726384283157,-1184.18,0.00014085,2]
[338203966,1726384283166,-500.0,0.00014085,2]
[338203967,1726384283176,-1837.01,0.00014085,2]
[338203968,1726384283186,-500.0,0.00014085,2]
[338203969,1726384283196,-500.0,0.00014085,2]
[338203970,1726384283206,-500.0,0.00014085,2]
[338203971,1726384283217,-500.0,0.00014085,2]
[338203972,1726384283227,-500.0,0.00014085,2]
[338203973,1726384283236,-500.0,0.00014085,2]
[338203974,1726384283246,-1921.78,0.00014085,2]
[338203975,1726384283256,-960.8,0.00014085,2]
[338203976,1726384283266,-500.0,0.00014085,2]
[338203977,1726384283275,-651.8,0.00014085,2]
[338203978,1726384283285,-500.0,0.00014085,2]
[338203979,1726384283294,-500.0,0.00014085,2]
[338203980,1726384283303,-500.0,0.00014085,2]
[338203981,1726384283313,-500.0,0.00014085,2]
[338203982,1726384283322,-500.0,0.00014085,2]
[338203983,1726384283332,-500.0,0.00014085,2]
[338203984,1726384283342,-500.0,0.00014085,2]
[338203985,1726384283351,-500.0,0.00014085,2]
[338203986,1726384283362,-1759.75,0.00014085,2]
[338203987,1726384283371,-500.0,0.00014085,2]
[338203988,1726384283381,-4710.25,0.00014085,2]
[338203989,1726384283390,-2314.24,0.00014085,2]
[338203990,1726384283399,-500.0,0.00014085,2]
[338203991,1726384283408,-946.91,0.00014085,2]
[338203992,1726384283418,-1561.76,0.00014085,2]
[338203993,1726384283428,-919.32,0.00014085,2]
[338203994,1726384283438,-1735.96,0.00014085,2]
[338203995,1726384283448,-730.95,0.00014085,2]
[338203996,1726384283458,-1190.21,0.00014085,2]
[338203997,1726384283467,-1522.56,0.00014085,2]
[338203998,1726384283477,-500.0,0.00014085,2]
[338203999,1726384283486,-534.09,0.00014085,2]
[338204000,1726384283496,-1423.6,0.00014085,2]
[338204001,1726384283505,-500.0,0.00014085,2]
[338204002,1726384283516,-1779.41,0.00014085,2]
[338204003,1726384283526,-500.0,0.00014085,2]
[338204004,1726384283535,-661.77,0.00014085,2]
[338204005,1726384283547,-2149.9,0.00014085,2]
[338204006,1726384283557,-644.67,0.00014085,2]
[338204007,1726384283567,-2241.87,0.00014085,2]
[338204008,1726384283576,-805.31,0.00014085,2]
[338204009,1726384283588,-1753.68,0.00014085,2]
[338204010,1726384283597,-500.0,0.00014085,2]
[338204011,1726384283609,-500.0,0.00014085,2]
[338204012,1726384283618,-871.41,0.00014085,2]
[338204013,1726384283628,-930.7,0.00014085,2]
[338204014,1726384283638,-765.01,0.00014085,2]
[338204015,1726384283648,-602.47,0.00014085,2]
[338204016,1726384283658,-500.0,0.00014085,2]
[338204017,1726384283667,-500.0,0.00014085,2]
[338204018,1726384283677,-663.37,0.00014085,2]
[338204019,1726384283688,-853.24,0.00014085,2]
[338204020,1726384283699,-500.0,0.00014085,2]
[338204021,1726384283711,-1259.57,0.00014085,2]
[338204022,1726384283721,-500.0,0.00014085,2]
[338204023,1726384283731,-675.34,0.00014085,2]
[338204024,1726384283740,-1180.28,0.00014085,2]
[338204025,1726384283751,-500.0,0.00014085,2]
[338204026,1726384283761,-670.44,0.00014085,2]
[338204027,1726384283771,-500.0,0.00014085,2]
[338204028,1726384283781,-500.0,0.00014085,2]
[338204029,1726384283791,-557.0,0.00014085,2]
[338204030,1726384283800,-500.0,0.00014085,2]
[338204031,1726384283810,-500.0,0.00014085,2]
[338204032,1726384283819,-500.0,0.00014085,2]
[338204033,1726384283829,-870.2,0.00014085,2]
[338204034,1726384283840,-1115.36,0.00014085,2]
[338204035,1726384283851,-1307.99,0.00014085,2]
[338204036,1726384283860,-795.96,0.00014085,2]
[338204037,1726384283870,-1077.35,0.00014085,2]
[338204038,1726384283879,-1431.0,0.00014085,2]
[338204039,1726384283889,-2588.49,0.00014085,2]
[338204040,1726384283898,-923.24,0.00014085,2]
[338204041,1726384283908,-3439.6,0.00014085,2]
[338204042,1726384283918,-1122.97,0.00014085,2]
[338204043,1726384283927,-500.0,0.00014085,2]
[338204044,1726384283937,-1162.17,0.00014085,2]
[338204045,1726384283947,-500.0,0.00014085,2]
[338204046,1726384283957,-754.68,0.00014085,2]
[338204047,1726384283966,-807.95,0.00014085,2]
[338204048,1726384283976,-500.0,0.00014085,2]
[338204049,1726384283986,-500.0,0.00014085,2]
[338204050,1726384283996,-696.51,0.00014085,2]
[338204051,1726384284006,-1754.54,0.00014085,2]
[338204052,1726384284015,-1583.63,0.00014085,2]
[338204053,1726384284024,-1220.55,0.00014085,2]
[338204054,1726384284035,-1279.88,0.00014085,2]
[338204055,1726384284046,-773.25,0.00014085,2]
[338204056,1726384284055,-699.17,0.00014085,2]
[338204057,1726384284065,-1577.29,0.00014085,2]
[338204058,1726384284074,-1057.82,0.00014085,2]
[338204059,1726384284085,-2157.55,0.00014085,2]
[338204060,1726384284096,-755.72,0.00014085,2]
[338204061,1726384284106,-1885.83,0.00014085,2]
[338204062,1726384284115,-500.0,0.00014085,2]
[338204063,1726384284125,-887.99,0.00014085,2]
[338204064,1726384284134,-886.33,0.00014085,2]
[338204065,1726384284149,-500.0,0.00014085,2]
[338204066,1726384284158,-500.0,0.00014085,2]
[338204067,1726384284167,-1737.51,0.00014085,2]
[338204068,1726384284177,-500.0,0.00014085,2]
[338204069,1726384284186,-836.85,0.00014085,2]
[338204070,1726384284195,-1041.98,0.00014085,2]
[338204071,1726384284205,-500.0,0.00014085,2]
[338204072,1726384284213,-500.0,0.00014085,2]
[338204073,1726384284223,-861.2,0.00014085,2]
[338204074,1726384284233,-1680.61,0.00014085,2]
[338204075,1726384284243,-500.0,0.00014085,2]
[338204076,1726384284252,-1614.78,0.00014085,2]
[338204077,1726384284263,-1823.89,0.00014085,2]
[338204078,1726384284272,-500.0,0.00014085,2]
[338204079,1726384284282,-1585.24,0.00014085,2]
[338204080,1726384284291,-780.07,0.00014085,2]
[338204081,1726384284300,-500.0,0.00014085,2]
[338204082,1726384284310,-980.4,0.00014085,2]
[338204083,1726384284319,-563.1,0.00014085,2]
[338204084,1726384284328,-890.91,0.00014085,2]
[338204085,1726384284337,-1933.97,0.00014085,2]
[338204086,1726384284347,-1032.33,0.00014085,2]
[338204087,1726384284357,-811.29,0.00014085,2]
[338204088,1726384284366,-1611.34,0.00014085,2]
[338204089,1726384284375,-1135.02,0.00014085,2]
[338204090,1726384284385,-500.0,0.00014085,2]
[338204091,1726384284394,-897.88,0.00014085,2]
[338204092,1726384284404,-708.32,0.00014085,2]
[338204093,1726384284413,-1414.77,0.00014085,2]
[338204094,1726384284425,-500.0,0.00014085,2]
[338204095,1726384284436,-500.0,0.00014085,2]
[338204096,1726384284447,-991.09,0.00014085,2]
[338204097,1726384284458,-2073.75,0.00014085,2]
[338204098,1726384284468,-500.0,0.00014085,2]
[338204099,1726384284478,-500.0,0.00014085,2]
[338204100,1726384284489,-1216.09,0.00014085,2]
[338204101,1726384284499,-960.23,0.00014085,2]
[338204102,1726384284509,-1340.41,0.00014085,2]
[338204103,1726384284518,-1757.91,0.00014085,2]
[338204104,1726384284527,-500.0,0.00014085,2]
[338204105,1726384284538,-1317.85,0.00014085,2]
[338204106,1726384284547,-500.0,0.00014085,2]
[338204107,1726384284558,-500.0,0.00014085,2]
[338204108,1726384284569,-534.25,0.00014085,2]
[338204109,1726384284578,-747.33,0.00014085,2]
[338204110,1726384284587,-2268.84,0.00014085,2]
[338204111,1726384284596,-500.0,0.00014085,2]
[338204112,1726384284606,-564.16,0.00014085,2]
[338204113,1726384284616,-1113.0,0.00014085,2]
[338204114,1726384284626,-870.34,0.00014085,2]
[338204115,1726384284636,-534.41,0.00014085,2]
[338204116,1726384284647,-586.59,0.00014085,2]
[338204117,1726384284659,-642.55,0.00014085,2]
[338204118,1726384284670,-500.0,0.00014085,2]
[338204119,1726384284681,-812.35,0.00014085,2]
[338204120,1726384284691,-1375.7,0.00014085,2]
[338204121,1726384284700,-500.0,0.00014085,2]
[338204122,1726384284709,-1395.42,0.00014085,2]
[338204123,1726384284720,-1022.52,0.00014085,2]
[338204124,1726384284730,-2007.03,0.00014085,2]
[338204125,1726384284740,-500.0,0.00014085,2]
[338204126,1726384284749,-2294.68,0.00014085,2]
[338204127,1726384284758,-665.93,0.00014085,2]
[338204128,1726384284768,-2810.04,0.00014085,2]
[338204129,1726384284777,-500.0,0.00014085,2]
[338204130,1726384284954,-1904.58,0.00014085,2]
[338204131,1726384284964,-500.0,0.00014085,2]
[338204132,1726384284974,-500.0,0.00014085,2]
[338204133,1726384284983,-500.0,0.00014085,2]
[338204134,1726384284993,-2272.83,0.00014085,2]
[338204135,1726384285002,-500.0,0.00014085,2]
[338204136,1726384285012,-2268.58,0.00014085,2]
[338204137,1726384285021,-500.0,0.00014085,2]
[338204138,1726384285031,-866.72,0.00014085,2]
[338204139,1726384285041,-1278.16,0.00014085,2]
[338204140,1726384285050,-500.0,0.00014085,2]
[338204141,1726384285063,-500.0,0.00014085,2]
[338204142,1726384285072,-500.0,0.00014085,2]
[338204143,1726384285082,-1721.43,0.00014085,2]
[338204144,1726384285091,-500.0,0.00014085,2]
[338204145,1726384285101,-2026.93,0.00014085,2]
[338204146,1726384285110,-500.0,0.00014086,2]
[338204147,1726384285121,-500.0,0.00014086,2]
[338204148,1726384285131,-500.0,0.00014086,2]
[338204149,1726384285143,-895.86,0.00014086,2]
[338204150,1726384285157,-500.0,0.00014086,2]
[338204151,1726384285166,-500.0,0.00014086,2]
[338204152,1726384285175,-500.0,0.00014086,2]
[338204153,1726384285184,-596.13,0.00014086,2]
[338204154,1726384285193,-500.0,0.00014086,2]
[338204155,1726384285203,-654.53,0.00014086,2]
[338204156,1726384285212,-1105.66,0.00014086,2]
[338204157,1726384285222,-881.18,0.00014086,2]
[338204158,1726384285232,-766.29,0.00014086,2]
[338204159,1726384285242,-604.92,0.00014086,2]
[338204160,1726384285251,-552.88,0.00014086,2]
[338204161,1726384285261,-500.0,0.00014086,2]
[338204162,1726384285270,-718.65,0.00014086,2]
[338204163,1726384285280,-541.98,0.00014086,2]
[338204164,1726384285290,-773.23,0.00014086,2]
[338204165,1726384285300,-500.0,0.00014086,2]
[338204166,1726384285310,-1626.51,0.00014086,2]
[338204167,1726384285320,-1310.19,0.00014086,2]
[338204168,1726384285330,-618.29,0.00014086,2]
[338204169,1726384285339,-1147.44,0.00014086,2]
[338204170,1726384285349,-2060.71,0.00014086,2]
[338204171,1726384285359,-500.0,0.00014086,2]
[338204172,1726384285370,-500.0,0.00014086,2]
[338204173,1726384285379,-500.0,0.00014086,2]
[338204174,1726384285390,-500.0,0.00014086,2]
[338204175,1726384285402,-500.0,0.00014086,2]
[338204176,1726384285411,-676.27,0.00014086,2]
[338204177,1726384285420,-500.0,0.00014086,2]
[338204178,1726384285431,-500.0,0.00014086,2]
[338204179,1726384285441,-675.72,0.00014086,2]
[338204180,1726384285451,-500.0,0.00014086,2]
[338204181,1726384285460,-2400.73,0.00014086,2]
[338204182,1726384285469,-752.95,0.00014086,2]
[338204183,1726384285478,-1094.37,0.00014086,2]
[338204184,1726384285488,-500.0,0.00014086,2]
[338204185,1726384285497,-500.0,0.00014086,2]
[338204186,1726384285506,-500.0,0.00014086,2]
[338204187,1726384285515,-776.87,0.00014086,2]
[338204188,1726384285524,-500.0,0.00014086,2]
[338204189,1726384285533,-2442.77,0.00014086,2]
[338204190,1726384285542,-500.0,0.00014086,2]
[338204191,1726384285551,-500.0,0.00014086,2]
[338204192,1726384285560,-1849.6,0.00014086,2]
[338204193,1726384285569,-500.0,0.00014086,2]
[338204194,1726384285578,-633.12,0.00014086,2]
[338204195,1726384285587,-500.0,0.00014086,2]
[338204196,1726384285596,-583.51,0.00014086,2]
[338204197,1726384285605,-500.0,0.00014086,2]
[338204198,1726384285614,-500.0,0.00014086,2]
[338204199,1726384285624,-1821.92,0.00014086,2]
[338204200,1726384285634,-2664.32,0.00014086,2]
[338204201,1726384285644,-500.0,0.00014086,2]
[338204202,1726384285654,-791.47,0.00014086,2]
[338204203,1726384285664,-2101.0,0.00014086,2]
[338204204,1726384285674,-500.0,0.00014086,2]
[338204205,1726384285684,-1740.81,0.00014086,2]
[338204206,1726384285694,-576.29,0.00014086,2]
[338204207,1726384285704,-1145.55,0.00014086,2]
[338204208,1726384285713,-621.4,0.00014086,2]
[338204209,1726384285722,-560.37,0.00014086,2]
[338204210,1726384285731,-162.48544482,0.00014086,2]
[338204211,1726384285740,-1902.0,0.00014086,2]
[338204212,1726384285750,-500.0,0.00014086,2]
[338204213,1726384285760,-400.91090279,0.00014086,2]
[338204214,1726384285770,-729.65,0.00014086,2]
[338204215,1726384285780,-1050.52,0.00014086,2]
[338204216,1726384285789,-816.91,0.00014086,2]
[338204217,1726384285798,-500.0,0.00014086,2]
[338204218,1726384285808,-150.0,0.00014086,2]
[338204219,1726384285818,-500.0,0.00014086,2]
[338204220,1726384285827,-1869.52,0.00014086,2]
[338204221,1726384285837,-963.07,0.00014086,2]
[338204222,1726384285846,-1410.39,0.00014086,2]
[338204223,1726384285856,-500.0,0.00014086,2]
[338204224,1726384285866,-901.38,0.00014086,2]
[338204225,1726384285875,-767.88,0.00014086,2]
[338204226,1726384285884,-500.0,0.00014086,2]
[338204227,1726384285894,-500.0,0.00014086,2]
[338204228,1726384285904,-1158.27,0.00014086,2]
[338204229,1726384285913,-591.0,0.00014086,2]
[338204230,1726384285923,-673.83,0.00014086,2]
[338204231,1726384285933,-752.18,0.00014086,2]
[338204232,1726384285944,-559.69,0.00014086,2]
[338204233,1726384285954,-577.75,0.00014086,2]
[338204234,1726384285964,-1372.2,0.00014086,2]
[338204235,1726384285974,-1569.17,0.00014086,2]
[338204236,1726384285984,-500.0,0.00014087,2]
[338204237,1726384285994,-500.0,0.00014091,2]
[338204238,1726384286004,-28703.04027034,0.000141,2]
[338204239,1726384286017,-500.0,0.000141,2]
[338204240,1726384286038,-8500.0,0.000141,2]
[338204241,1726384286053,-34913.36900666,0.0001412,2]
[338204242,1726384286074,-647.23442533,0.0001412,2]
[338204243,1726384286093,-159.91869518,0.0001412,2]
[338204244,1726384286110,-1285.85598382,0.0001412,2]
[338204245,1726384286129,-892.15,0.00014156,2]
[338204246,1726384286145,-500.0,0.00014156,2]
[338204247,1726384286163,-1327.12,0.00014156,2]
[338204248,1726384286182,-1991.31,0.00014156,2]
[338204249,1726384286201,-34897.6928194,0.0001419,2]
[338204250,1726384286215,-40436.2438428,0.0001419,2]
[338204251,1726384286234,-45974.7948663,0.0001419,2]
[338204252,1726384286249,-5852.041376,0.0001419,2]
[338204253,1726384286274,-6675.8773087,0.0001419,2]
[338204254,1726384286290,-7499.7132414,0.0001419,2]
[338204255,1726384286307,-23521.628401,0.0001419,2]
[338204256,1726384286322,-26832.9451582,0.0001419,2]
[338204257,1726384286337,-30144.2619155,0.0001419,2]
[338204258,1726384286352,-2893.6119299,0.0001419,2]
[338204259,1726384286368,-3300.9674713,0.0001419,2]
[338204260,1726384286384,-3708.3230127,0.0001419,2]
[338204261,1726384286398,-1839.3774563,0.0001419,2]
[338204262,1726384286413,-1509.0851089,0.0001419,2]
[338204263,1726384286429,-1178.7927614,0.0001419,2]
[338204264,1726384286443,-5530.9450334,0.0001419,2]
[338204265,1726384286460,-4537.7672535,0.0001419,2]
[338204266,1726384286474,-3544.5894735,0.0001419,2]
[338204267,1726384286489,-899.9686355,0.0001419,2]
[338204268,1726384286505,-738.3635489,0.0001419,2]
[338204269,1726384286522,-576.7584622,0.0001419,2]
[338204270,1726384286536,-852.3646805,0.0001419,2]
[338204271,1726384286553,-653.6332001,0.0001419,2]
[338204272,1726384286569,-454.9017198,0.0001419,2]
[338204273,1726384286584,-153.35,0.00014192,2]
[338204274,1726384286601,-2007.0,0.000142,10]
[338204275,1726384286617,-1092940.0243944,0.000142,2]
[338204276,1726384287763,-3500.0,0.000142,2]
[338204277,1726384287775,-655.6964493,0.000142,2]
[338204278,1726384287787,-500.0,0.000142,2]
[338204279,1726384287799,-2510.72,0.000142,2]
[338204280,1726384287810,-717.96206054,0.000142,2]
[338204281,1726384288278,-500.0,0.00012987,2]
[338204282,1726384288979,-1129.51,0.00012987,2]
[338204283,1726384288989,-500.0,0.00012987,2]
[338204284,1726384288999,-500.0,0.00012987,2]
[338204285,1726384289008,-500.0,0.00012989,2]
[338204286,1726384289018,-500.0,0.00012989,2]
[338204287,1726384289027,-3072.06,0.0001326,2]
[338204288,1726384289036,-18654.7389465,0.00013261,2]
[338204289,1726384289057,-500.0,0.00012886,2]
[338204290,1726384289066,-500.0,0.00012987,2]
[338204291,1726384289076,-9006.38777343,0.00013261,2]
[338204292,1726384289085,-500.0,0.00013261,2]
[338204293,1726384289095,-1629.51,0.00013261,2]
[338204294,1726384289104,-500.0,0.00013261,2]
[338204295,1726384289113,-500.0,0.00013261,2]
[338204296,1726384289123,-500.0,0.00013263,2]
[338204297,1726384289133,-500.0,0.00013263,2]
[338204298,1726384289145,-500.0,0.00013263,2]
[338204299,1726384289154,-500.0,0.00013535,2]
[338204300,1726384289164,-500.0,0.00013535,2]
[338204301,1726384289173,-500.0,0.00013535,2]
[338204302,1726384289183,-500.0,0.00013537,2]
[338204303,1726384289193,-500.0,0.00013537,2]
[338204304,1726384289202,-500.0,0.00013537,2]
[338204305,1726384289212,-500.0,0.00013809,2]
[338204306,1726384289222,-500.0,0.00013809,2]
[338204307,1726384289231,-500.0,0.00013809,2]
[338204308,1726384289242,-500.0,0.00013811,2]
[338204309,1726384289252,-500.0,0.00013811,2]
[338204310,1726384289263,-500.0,0.00013811,2]
[338204311,1726384289282,-500.0,0.00014083,2]
[338204312,1726384289291,-500.0,0.00014083,2]
[338204313,1726384289300,-247.09,0.00014083,2]
[338204314,1726384289310,-500.0,0.00014085,2]